bitfinex-derivatives/quotes_BTCF0:USTF0_20250704
["timestamp","ask_amount","ask_price","bid_price","bid_amount"]
[1751607785242,2.65324236,109230.0,109220.0,0.19578774]
[1751607785648,2.65324236,109230.0,109220.0,0.01273304]
[1751607787057,2.65324236,109230.0,109220.0,0.19578764]
[1751607788456,2.65324236,109230.0,109220.0,0.01273304]
[1751607790254,2.90214194,109230.0,109220.0,0.01273304]
[1751607794363,2.90214194,109230.0,109220.0,0.01273287]
[1751607796559,2.18054194,109230.0,109220.0,0.01273287]
[1751607796764,2.90214194,109230.0,109220.0,0.01273287]
[1751607801361,0.1830714,109210.0,109200.0,0.26841657]
[1751607801558,1.95557385,109210.0,109200.0,0.84731615]
[1751607801759,1.95557385,109210.0,109200.0,0.87901615]
[1751607801962,1.95557385,109210.0,109200.0,0.82428408]
[1751607802468,1.95557385,109210.0,109200.0,0.5753845]
[1751607802768,1.95657385,109210.0,109200.0,0.83228408]
[1751607802967,1.95657385,109210.0,109200.0,0.88701615]
[1751607803368,2.00657385,109210.0,109200.0,0.88701615]
[1751607803877,1.74657385,109210.0,109200.0,0.88701615]
[1751607804069,0.81553385,109210.0,109200.0,0.88701615]
[1751607804269,1.99657385,109210.0,109200.0,0.88701615]
[1751607804571,1.99657385,109210.0,109200.0,0.91711615]
[1751607804764,0.56663427,109210.0,109200.0,1.16601573]
[1751607804960,0.2745995,109220.0,109210.0,0.1830714]
[1751607805163,1.4206509,109230.0,109220.0,0.1830547]
[1751607805359,1.2998509,109230.0,109220.0,1.08195386]
[1751607805564,1.6606509,109230.0,109220.0,1.08195386]
[1751607805762,1.90955048,109230.0,109220.0,1.08195386]
[1751607806164,1.90955048,109230.0,109220.0,0.88778635]
[1751607806368,1.90955048,109230.0,109220.0,0.83305428]
[1751607806565,1.90955048,109230.0,109220.0,0.52305428]
[1751607806970,1.90955048,109230.0,109220.0,0.79305428]
[1751607808171,1.90955048,109230.0,109220.0,0.79405428]
[1751607808375,1.6606509,109230.0,109220.0,0.79405428]
[1751607808569,1.90955048,109230.0,109220.0,0.79405428]
[1751607811378,1.90955048,109230.0,109220.0,0.84878635]
[1751607813680,1.90955048,109230.0,109220.0,0.59988677]
[1751607813883,1.90955048,109230.0,109220.0,0.84878635]
[1751607815180,1.90955048,109230.0,109220.0,0.79405428]
[1751607816285,1.90955048,109230.0,109220.0,0.1840547]
[1751607816477,2.00275048,109230.0,109220.0,0.1840547]
[1751607817085,2.02435421,109230.0,109220.0,0.4740547]
[1751607817286,2.02435421,109230.0,109220.0,0.1840547]
[1751607822798,2.02435421,109230.0,109220.0,0.5040547]
[1751607823001,2.02435421,109230.0,109220.0,0.75295428]
[1751607823200,2.02435421,109230.0,109220.0,0.48295428]
[1751607823401,2.02435421,109230.0,109220.0,0.74295428]
[1751607824702,2.02435421,109230.0,109220.0,0.49295428]
[1751607824902,2.02435421,109230.0,109220.0,0.73295428]
[1751607825102,2.02435421,109230.0,109220.0,0.49295428]
[1751607825904,2.02435421,109230.0,109220.0,0.73295428]
[1751607826098,2.02435421,109230.0,109220.0,0.48295428]
[1751607826399,2.00275048,109230.0,109220.0,0.48295428]
[1751607826604,2.02435591,109230.0,109220.0,0.48295428]
[1751607826804,2.02435591,109230.0,109220.0,0.70295428]
[1751607827003,2.00275048,109230.0,109220.0,0.70295428]
[1751607828199,2.0243566,109230.0,109220.0,0.70295428]
[1751607829507,2.0243566,109230.0,109220.0,0.49295428]
[1751607829903,2.0243566,109230.0,109220.0,0.1840547]
[1751607830303,2.27325618,109230.0,109220.0,0.001]
[1751607830502,2.63405618,109230.0,109220.0,0.001]
[1751607832814,0.1830714,109210.0,109200.0,0.32935177]
[1751607833112,2.01510863,109210.0,109200.0,0.5546197]
[1751607833313,2.10760863,109210.0,109200.0,0.3346197]
[1751607833514,2.10760863,109210.0,109200.0,0.5446197]
[1751607833710,2.10760863,109210.0,109200.0,0.3446197]
[1751607834009,2.10760863,109210.0,109200.0,0.6076197]
[1751607834201,2.10860863,109210.0,109200.0,0.6126197]
[1751607834906,2.10860863,109210.0,109200.0,0.2826197]
[1751607836612,2.11760801,109210.0,109200.0,0.2826197]
[1751607839406,2.10860863,109210.0,109200.0,0.86151928]
[1751607841816,2.18108825,109210.0,109200.0,0.86151928]
[1751607843017,2.18108825,109210.0,109200.0,0.58151928]
[1751607843519,2.18108825,109210.0,109200.0,0.82151928]
[1751607844820,2.18108825,109210.0,109200.0,0.2826197]
[1751607845015,2.42998783,109210.0,109200.0,0.008]
[1751607845221,2.40837018,109210.0,109200.0,0.008]
[1751607845423,2.4299426,109210.0,109200.0,0.008]
[1751607845720,2.6616226,109210.0,109200.0,0.1910882]
[1751607846122,2.41272302,109210.0,109200.0,0.1910882]
[1751607847325,2.6616226,109210.0,109200.0,0.1910882]
[1751607848324,2.41272302,109210.0,109200.0,0.1910882]
[1751607849525,2.41272302,109210.0,109200.0,0.008]
[1751607852528,2.41271719,109210.0,109200.0,0.008]
[1751607852929,2.66161677,109210.0,109200.0,0.008]
[1751607853530,0.1830882,109200.0,109190.0,0.23069789]
[1751607853725,1.44418736,109200.0,109190.0,0.23069789]
[1751607854626,1.44418736,109200.0,109190.0,0.23469789]
[1751607855432,1.44518736,109200.0,109190.0,0.24169789]
[1751607856025,1.44518736,109200.0,109190.0,0.19592399]
[1751607856329,1.46675315,109200.0,109190.0,0.19592399]
[1751607857029,0.96765399,109200.0,109190.0,0.75482357]
[1751607857221,0.51708322,109220.0,109190.0,1.78872315]
[1751607857424,1.93242441,109220.0,109210.0,0.43197098]
[1751607857620,1.93242441,109220.0,109210.0,0.73197098]
[1751607857925,1.93242441,109220.0,109210.0,0.82617098]
[1751607858326,1.93246441,109220.0,109210.0,0.5772714]
[1751607858526,1.93546441,109220.0,109210.0,0.82717098]
[1751607859331,2.18436399,109220.0,109210.0,0.82717098]
[1751607859632,2.25706104,109220.0,109210.0,0.82717098]
[1751607859930,2.00816146,109220.0,109210.0,0.82729851]
[1751607860327,2.00816146,109220.0,109210.0,0.82829851]
[1751607861433,1.17740146,109220.0,109210.0,0.82829851]
[1751607861633,2.00808146,109220.0,109210.0,0.82829851]
[1751607861833,1.62808146,109220.0,109210.0,0.52829851]
[1751607862138,1.62808146,109220.0,109210.0,0.2792714]
[1751607862333,1.90900857,109220.0,109210.0,0.2792714]
[1751607862734,1.90900857,109220.0,109210.0,0.1850714]
[1751607862935,1.90900857,109220.0,109210.0,0.002]
[1751607862936,1.94010857,109220.0,109210.0,0.002]
[1751607863531,1.94010857,109220.0,109210.0,0.1850714]
[1751607865636,1.94010857,109220.0,109210.0,0.002]
[1751607867536,1.94010857,109220.0,109210.0,0.1850714]
[1751607869335,1.94010857,109220.0,109210.0,0.002]
[1751607871342,1.94010857,109220.0,109210.0,0.1850713]
[1751607882645,1.69108146,109220.0,109210.0,0.1850713]
[1751607882851,1.94010857,109220.0,109210.0,0.1850713]
[1751607884952,1.94010857,109220.0,109210.0,0.002]
[1751607887750,1.94010857,109220.0,109200.0,0.3374114]
[1751607887751,0.1830881,109200.0,109190.0,0.30373754]
[1751607887956,1.6450018,109200.0,109190.0,0.33124393]
[1751607888258,1.7079018,109200.0,109190.0,0.28546863]
[1751607889259,1.7089018,109200.0,109190.0,0.29046863]
[1751607889461,1.7089018,109200.0,109190.0,0.29346863]
[1751607893962,1.7089018,109200.0,109190.0,0.32466863]
[1751607893963,2.0389018,109200.0,109190.0,0.32466863]
[1751607896964,2.0715018,109200.0,109190.0,0.32466863]
[1751607897465,2.0715018,109200.0,109190.0,0.29346863]
[1751607898361,2.07155139,109200.0,109190.0,0.06459953]
[1751607898764,2.07155139,109200.0,109190.0,0.00983159]
[1751607900570,2.07155139,109200.0,109190.0,0.19293649]
[1751607902269,1.71075139,109200.0,109190.0,0.19293649]
[1751607902570,2.07155139,109200.0,109190.0,0.19293649]
[1751607908974,2.07155139,109200.0,109190.0,0.00983159]
[1751607915386,2.07155139,109200.0,109190.0,0.06459953]
[1751607915787,2.32092746,109200.0,109190.0,0.06459953]
[1751607918283,2.32092746,109200.0,109190.0,0.00983159]
[1751607920293,2.32095725,109200.0,109190.0,0.00983159]
[1751607921894,2.32095725,109200.0,109190.0,0.06459953]
[1751607922192,2.32095725,109200.0,109190.0,0.00983159]
[1751607923993,2.32095725,109200.0,109190.0,0.19293639]
[1751607924194,2.32095725,109200.0,109190.0,0.24770433]
[1751607924493,2.32095725,109200.0,109190.0,0.06459953]
[1751607926691,2.32095725,109200.0,109190.0,0.56770433]
[1751607926994,2.32095725,109200.0,109190.0,0.06459953]
[1751607927196,2.32095996,109200.0,109190.0,0.06459953]
[1751607927899,2.32095996,109200.0,109190.0,0.12459953]
[1751607928096,2.32095996,109200.0,109190.0,0.38459953]
[1751607929898,2.32095996,109200.0,109190.0,0.56770433]
[1751607930899,2.32095996,109200.0,109190.0,0.30770433]
[1751607932501,2.32095996,109200.0,109190.0,0.24770433]
[1751607932702,2.32095996,109200.0,109190.0,0.34770433]
[1751607933001,2.32095996,109200.0,109190.0,0.24770433]
[1751607933202,2.32095996,109200.0,109190.0,0.29770433]
[1751607933405,2.32095996,109200.0,109190.0,0.24770433]
[1751607933796,2.32095996,109200.0,109190.0,0.35770433]
[1751607934096,2.32095996,109200.0,109190.0,0.36770433]
[1751607934298,2.32095996,109200.0,109190.0,0.24770433]
[1751607935106,2.32095996,109200.0,109190.0,0.36770433]
[1751607935301,2.32095996,109200.0,109190.0,0.56770433]
[1751607936010,2.32095996,109200.0,109190.0,0.24770433]
[1751607936208,2.32095996,109200.0,109190.0,0.42770433]
[1751607936406,2.32095996,109200.0,109190.0,0.24770433]
[1751607937706,1.82255678,109200.0,109190.0,0.29770433]
[1751607937906,2.32095996,109200.0,109190.0,0.29770433]
[1751607938108,2.32095996,109200.0,109190.0,0.24770433]
[1751607938610,2.32095996,109200.0,109190.0,0.36770433]
[1751607938809,2.32095996,109200.0,109190.0,0.30770433]
[1751607939010,2.32095996,109200.0,109190.0,0.24770433]
[1751607939308,2.32095996,109200.0,109190.0,0.43770433]
[1751607939508,2.32095996,109200.0,109190.0,0.24770433]
[1751607942705,2.32095996,109200.0,109190.0,0.43770433]
[1751607943614,2.32095996,109200.0,109190.0,0.24770433]
[1751607943910,2.32095996,109200.0,109190.0,0.35770433]
[1751607944109,2.32095996,109200.0,109190.0,0.24770433]
[1751607944709,2.32095996,109200.0,109190.0,0.52770433]
[1751607945013,2.32095996,109200.0,109190.0,0.47293639]
[1751607945517,2.32095996,109200.0,109190.0,0.19293639]
[1751607945714,2.32095996,109200.0,109190.0,0.50293639]
[1751607946415,2.32095996,109200.0,109190.0,0.25293639]
[1751607947017,2.32095996,109200.0,109190.0,0.20293639]
[1751607948121,2.32095996,109200.0,109190.0,0.19293639]
[1751607950721,2.32095996,109200.0,109190.0,0.25293639]
[1751607951319,2.32095996,109200.0,109190.0,0.19293639]
[1751607952321,2.32095996,109200.0,109190.0,0.00983159]
[1751607952521,2.32095996,109200.0,109190.0,0.19293629]
[1751607952819,2.32095996,109200.0,109190.0,0.00983159]
[1751607953323,2.32095996,109200.0,109190.0,0.19293629]
[1751607954920,1.96015996,109200.0,109190.0,0.19293629]
[1751607955226,2.32095996,109200.0,109190.0,0.19293629]
[1751607955523,2.32095996,109200.0,109190.0,0.24770423]
[1751607955822,2.32095996,109200.0,109190.0,0.06459953]
[1751607958729,2.55243996,109200.0,109190.0,0.06459953]
[1751607960428,2.55243996,109200.0,109190.0,0.24770423]
[1751607961125,2.55243996,109200.0,109190.0,0.35770423]
[1751607961322,2.55243996,109200.0,109190.0,0.24770423]
[1751607963522,2.55243996,109200.0,109190.0,0.29770423]
[1751607963722,2.55243996,109200.0,109190.0,0.54770423]
[1751607964028,2.55243996,109200.0,109190.0,0.24770423]
[1751607965126,2.55243996,109200.0,109190.0,0.29770423]
[1751607966431,2.55243996,109200.0,109190.0,0.24770423]
[1751607966927,2.55243996,109200.0,109190.0,0.53770423]
[1751607967129,2.55243996,109200.0,109190.0,0.06459953]
[1751607967329,2.55243996,109200.0,109190.0,0.24770423]
[1751607969128,2.55243996,109200.0,109190.0,0.06459953]
[1751607971429,2.55243996,109200.0,109190.0,0.00983159]
[1751607973631,2.80164155,109200.0,109190.0,1e-08]
[1751607976432,3.16244155,109200.0,109190.0,1e-08]
[1751607978431,2.91323996,109200.0,109190.0,1e-08]
[1751607984945,2.19163996,109200.0,109190.0,1e-08]
[1751607985242,2.91323996,109200.0,109190.0,1e-08]
[1751607993145,2.08271996,109200.0,109190.0,1e-08]
[1751607993345,2.91267996,109200.0,109190.0,1e-08]
[1751608010366,2.19107996,109200.0,109190.0,1e-08]
[1751608010568,2.91267996,109200.0,109190.0,1e-08]
[1751608033585,2.41427678,109200.0,109190.0,1e-08]
[1751608033785,2.91267996,109200.0,109190.0,1e-08]
[1751608040391,2.91227996,109200.0,109190.0,1e-08]
[1751608044195,2.41387678,109200.0,109190.0,1e-08]
[1751608044492,2.91227996,109200.0,109190.0,1e-08]
[1751608058301,2.91220846,109200.0,109190.0,1e-08]
[1751608059406,2.19060846,109200.0,109190.0,1e-08]
[1751608059607,2.91220846,109200.0,109190.0,1e-08]
[1751608063207,0.6918,109200.0,109190.0,0.4323063]
[1751608063409,0.20566322,109200.0,109190.0,1.35987583]
[1751608063718,0.20566322,109200.0,109190.0,1.47147424]
[1751608064011,0.20566322,109200.0,109190.0,1.11067424]
[1751608064012,0.45486481,109200.0,109190.0,1.11067424]
[1751608064601,0.77486481,109200.0,109190.0,1.11067424]
[1751608064913,0.75328949,109200.0,109190.0,1.12793883]
[1751608066416,0.75328949,109200.0,109190.0,1.16439318]
[1751608067010,0.77328949,109200.0,109190.0,1.16439318]
[1751608067315,0.77328949,109200.0,109190.0,0.91439318]
[1751608067716,0.77328949,109200.0,109190.0,1.09755318]
[1751608068418,0.77328949,109200.0,109190.0,1.09789572]
[1751608071523,0.77328949,109200.0,109190.0,1.04312778]
[1751608073721,0.77328949,109200.0,109190.0,1.09789572]
[1751608073921,0.1840879,109200.0,109190.0,1.09789572]
[1751608074222,0.76328949,109200.0,109190.0,1.09789572]
[1751608076021,0.76328949,109200.0,109190.0,1.09793712]
[1751608078025,0.43328949,109200.0,109190.0,1.09793712]
[1751608078225,0.81328949,109200.0,109190.0,1.09793712]
[1751608079534,0.81328949,109200.0,109190.0,1.09732579]
[1751608079827,0.81328949,109200.0,109190.0,0.87771144]
[1751608080720,0.1840879,109200.0,109190.0,0.87771144]
[1751608080921,0.5340879,109200.0,109190.0,0.87771144]
[1751608081122,0.1840879,109200.0,109190.0,0.87771144]
[1751608082233,1.013288,109200.0,109190.0,1.23851144]
[1751608082722,0.184088,109200.0,109190.0,1.23851144]
[1751608083324,0.564088,109200.0,109190.0,1.23851144]
[1751608085741,0.81328959,109200.0,109190.0,1.23851144]
[1751608088136,0.81328959,109200.0,109190.0,0.62850985]
[1751608088337,1.42329118,109200.0,109190.0,0.16540515]
[1751608088539,1.51729118,109200.0,109190.0,0.2365775]
[1751608089737,1.51829118,109200.0,109190.0,0.28657749]
[1751608089944,1.51929118,109200.0,109190.0,0.28757749]
[1751608092343,1.51929118,109200.0,109190.0,0.34234543]
[1751608093944,1.51929118,109200.0,109190.0,0.29234543]
[1751608094145,1.51929118,109200.0,109190.0,0.57234543]
[1751608094846,0.90928959,109200.0,109190.0,0.82154702]
[1751608095049,1.73844959,109200.0,109190.0,0.82154702]
[1751608095248,0.52928959,109200.0,109190.0,0.82154702]
[1751608095545,0.52928959,109200.0,109190.0,0.78511143]
[1751608095742,1.72844959,109200.0,109190.0,0.78511143]
[1751608098648,1.109248,109200.0,109190.0,0.78511143]
[1751608098848,1.66844959,109200.0,109190.0,0.78511143]
[1751608099050,1.35844959,109200.0,109190.0,0.78511143]
[1751608101951,1.66844959,109200.0,109190.0,0.78511143]
[1751608102652,1.91765118,109200.0,109190.0,0.78511143]
[1751608104158,1.91765118,109200.0,109190.0,0.25590984]
[1751608104358,2.27845118,109200.0,109190.0,0.29240663]
[1751608104559,2.27845118,109200.0,109190.0,0.29240747]
[1751608105148,2.27845118,109200.0,109190.0,0.23763953]
[1751608108954,2.52765277,109200.0,109190.0,0.05453483]
[1751608109661,2.27845118,109200.0,109190.0,0.05453483]
[1751608109958,2.27845118,109200.0,109190.0,0.0180372]
[1751608110259,2.52765277,109200.0,109190.0,0.0180372]
[1751608110463,2.27845118,109200.0,109190.0,0.0180372]
[1751608111865,2.52765277,109200.0,109190.0,0.0180372]
[1751608112359,0.1831047,109190.0,109180.0,0.09126557]
[1751608112659,1.48510788,109190.0,109180.0,0.03649763]
[1751608112859,1.48510788,109190.0,109180.0,0.21961913]
[1751608113557,1.48610788,109190.0,109180.0,0.22061913]
[1751608114359,1.48610788,109190.0,109180.0,0.22161913]
[1751608121165,1.48610788,109190.0,109180.0,0.03849763]
[1751608124966,1.48610788,109190.0,109180.0,0.002]
[1751608127857,1.48610788,109190.0,109170.0,0.26540603]
[1751608127858,0.68152458,109180.0,109170.0,0.21962153]
[1751608128061,2.27508458,109180.0,109170.0,0.21962153]
[1751608129266,2.27608458,109180.0,109170.0,0.03849763]
[1751608129569,2.27608458,109180.0,109170.0,0.22163583]
[1751608129969,2.27608458,109180.0,109170.0,0.22363583]
[1751608130774,2.27708458,109180.0,109170.0,0.22063583]
[1751608133072,2.28618995,109180.0,109170.0,0.22063583]
[1751608136274,2.28618995,109180.0,109170.0,0.03749763]
[1751608136976,2.51738995,109180.0,109170.0,0.03749763]
[1751608138876,2.01898677,109180.0,109170.0,0.03749763]
[1751608139066,2.51738995,109180.0,109170.0,0.03749763]
[1751608139568,2.53636051,109180.0,109170.0,0.03749763]
[1751608140378,2.7855621,109180.0,109170.0,0.03749763]
[1751608140577,0.1831382,109170.0,109160.0,0.25554101]
[1751608140777,1.49474138,109170.0,109160.0,0.25554101]
[1751608141178,1.49474138,109170.0,109160.0,0.25555561]
[1751608141373,1.49474138,109170.0,109160.0,0.01763267]
[1751608141673,0.183155,109160.0,109150.0,0.27287077]
[1751608141980,2.35304858,109160.0,109150.0,0.25348843]
[1751608142180,2.35104858,109160.0,109150.0,0.07031763]
[1751608142381,2.60025017,109160.0,109150.0,0.07031763]
[1751608142788,2.3728205,109160.0,109150.0,0.00183226]
[1751608143082,2.3708205,109160.0,109150.0,0.00183226]
[1751608143781,2.3708205,109160.0,109150.0,0.00583226]
[1751608143782,2.12284061,109160.0,109150.0,0.00583226]
[1751608144178,2.19557132,109160.0,109150.0,0.00283226]
[1751608147586,0.1831886,109140.0,109130.0,0.38466176]
[1751608147785,2.22207518,109140.0,109130.0,0.38466176]
[1751608147983,2.03685189,109140.0,109130.0,0.38466176]
[1751608148882,2.03685189,109140.0,109130.0,0.39892579]
[1751608149984,2.03785189,109140.0,109130.0,0.40292579]
[1751608150190,1.7884286,109140.0,109130.0,0.40292579]
[1751608150390,2.03785189,109140.0,109130.0,0.40292579]
[1751608150590,2.03785189,109140.0,109130.0,0.31062579]
[1751608150780,2.03785189,109140.0,109130.0,0.26482509]
[1751608151091,2.06965189,109140.0,109130.0,0.27841115]
[1751608151286,2.06965189,109140.0,109130.0,0.28041115]
[1751608154088,2.07872739,109140.0,109130.0,0.28041115]
[1751608154489,2.06965189,109140.0,109130.0,0.28041115]
[1751608155888,2.06965189,109140.0,109130.0,0.28052106]
[1751608157385,2.06965189,109140.0,109130.0,0.2662003]
[1751608157587,2.06965189,109140.0,109130.0,0.28052106]
[1751608158287,1.8202286,109140.0,109130.0,0.28052106]
[1751608158492,2.06965189,109140.0,109130.0,0.28052106]
[1751608158994,2.07874852,109140.0,109130.0,0.26688182]
[1751608159290,2.06864889,109140.0,109130.0,0.28052369]
[1751608159491,2.06864889,109140.0,109130.0,0.34212369]
[1751608159689,2.06864889,109140.0,109130.0,0.37455943]
[1751608160989,2.06864889,109140.0,109130.0,0.32455943]
[1751608161191,2.10124889,109140.0,109130.0,0.32455943]
[1751608165192,2.10124889,109140.0,109130.0,0.31023867]
[1751608165394,2.10124889,109140.0,109130.0,0.32455943]
[1751608165896,2.3507375,109140.0,109130.0,0.32455943]
[1751608166695,2.3507375,109140.0,109130.0,0.40455943]
[1751608168295,2.3507375,109140.0,109130.0,0.40456742]
[1751608169392,2.3507375,109140.0,109130.0,0.37436742]
[1751608169599,2.3507375,109140.0,109130.0,0.29436742]
[1751608169993,2.3507375,109140.0,109130.0,0.38436742]
[1751608170191,2.3507375,109140.0,109130.0,0.37436742]
[1751608171101,2.32903713,109140.0,109130.0,0.42910255]
[1751608171793,2.35079282,109140.0,109130.0,0.42910255]
[1751608173603,2.35079282,109140.0,109130.0,0.31670255]
[1751608174101,2.35079282,109140.0,109130.0,0.31570255]
[1751608179307,2.35079282,109140.0,109130.0,0.3157603]
[1751608180503,2.35079282,109140.0,109130.0,0.31576238]
[1751608183004,2.35079282,109140.0,109130.0,0.08676558]
[1751608183414,2.35079282,109140.0,109110.0,0.15063622]
[1751608183415,0.1832221,109120.0,109110.0,0.25810238]
[1751608183606,2.184174,109120.0,109110.0,0.25810238]
[1751608183806,2.510954,109120.0,109110.0,0.25810238]
[1751608184406,2.53292602,109120.0,109110.0,0.18506553]
[1751608184602,2.53292602,109120.0,109110.0,0.18906553]
[1751608184817,2.53392602,109120.0,109110.0,0.18906553]
[1751608185820,2.28456518,109120.0,109110.0,0.18906553]
[1751608186223,2.28456518,109120.0,109110.0,0.19106553]
[1751608186918,2.28456518,109120.0,109110.0,0.18906553]
[1751608187520,2.26259316,109120.0,109110.0,0.18906553]
[1751608187715,2.26159316,109120.0,109110.0,0.18506553]
[1751608187910,2.26359316,109120.0,109110.0,0.18506553]
[1751608190017,0.9509221,109120.0,109110.0,0.18506553]
[1751608190224,2.26323316,109120.0,109110.0,0.27506553]
[1751608193826,2.0136821,109120.0,109110.0,0.27506553]
[1751608194021,2.26323316,109120.0,109110.0,0.27506553]
[1751608195422,2.26323316,109120.0,109110.0,0.00183293]
[1751608195629,2.26323316,109120.0,109090.0,0.63418297]
[1751608195630,0.1832557,109100.0,109090.0,0.33778512]
[1751608195924,1.94472676,109100.0,109090.0,0.71818512]
[1751608196225,1.62472676,109100.0,109090.0,0.75038512]
[1751608196525,1.69989784,109100.0,109090.0,0.75038512]
[1751608197021,1.70189784,109100.0,109090.0,0.75038512]
[1751608197427,2.07189784,109100.0,109090.0,0.002]
[1751608197627,2.16462334,109100.0,109090.0,0.1852725]
[1751608197827,2.16462334,109100.0,109090.0,0.4952725]
[1751608198024,1.8542098,109100.0,109090.0,0.74482356]
[1751608198322,1.5042098,109100.0,109090.0,0.84022356]
[1751608198625,1.5042098,109100.0,109090.0,0.5906725]
[1751608198828,1.5022098,109100.0,109090.0,0.5906725]
[1751608199029,1.5042098,109100.0,109090.0,0.5896725]
[1751608199225,2.13372086,109100.0,109090.0,0.1842723]
[1751608199424,2.16602086,109100.0,109090.0,0.1842723]
[1751608199830,0.1832891,109080.0,109070.0,0.0458237]
[1751608200022,0.1832891,109080.0,109070.0,0.35863111]
[1751608200023,2.00520016,109080.0,109070.0,0.35863111]
[1751608200229,2.07050016,109080.0,109070.0,0.35863111]
[1751608200430,1.0801491,109080.0,109070.0,0.83818217]
[1751608200624,1.0478491,109080.0,109070.0,1.23198217]
[1751608200825,1.4086491,109080.0,109070.0,0.91258343]
[1751608201025,1.4086491,109080.0,109070.0,0.90749149]
[1751608201231,1.4409491,109080.0,109070.0,0.90749149]
[1751608201525,1.4409491,109080.0,109070.0,0.01780483]
[1751608201526,2.50181122,109080.0,109070.0,0.01780483]
[1751608202138,2.50381122,109080.0,109070.0,0.01780483]
[1751608202723,2.50381122,109080.0,109070.0,0.20111063]
[1751608203124,2.0047091,109080.0,109070.0,0.20111063]
[1751608203328,2.25426016,109080.0,109070.0,0.20111063]
[1751608203532,2.25426016,109080.0,109070.0,0.19711063]
[1751608204428,2.25526016,109080.0,109070.0,0.27711063]
[1751608206936,2.25526016,109080.0,109070.0,0.27716268]
[1751608207630,2.0057091,109080.0,109070.0,0.27716268]
[1751608207829,2.25526016,109080.0,109070.0,0.27716268]
[1751608209932,0.6123891,109080.0,109070.0,0.58671374]
[1751608210133,1.4116491,109080.0,109070.0,0.94751374]
[1751608210439,1.4116491,109080.0,109070.0,1.04221374]
[1751608211233,1.4116491,109080.0,109070.0,0.79266268]
[1751608211833,0.003,109080.0,109070.0,0.90221374]
[1751608212036,1.1746508,109100.0,109090.0,0.1832723]
[1751608212231,1.1746508,109100.0,109090.0,0.75282336]
[1751608212232,1.1425508,109100.0,109090.0,0.75282336]
[1751608212535,1.1425508,109100.0,109090.0,0.5990723]
[1751608213231,1.39210186,109100.0,109090.0,0.5990723]
[1751608213432,1.74210186,109100.0,109090.0,0.5990723]
[1751608214041,1.74510186,109100.0,109090.0,0.5990723]
[1751608214232,1.78030186,109100.0,109090.0,0.5990723]
[1751608214832,1.78030186,109100.0,109090.0,0.1832723]
[1751608215545,2.14110186,109100.0,109090.0,0.1832723]
[1751608219047,1.33064036,109100.0,109090.0,0.1832723]
[1751608219249,2.40104036,109100.0,109090.0,0.1832723]
[1751608219948,0.1832723,109090.0,109080.0,0.3538343]
[1751608220248,0.85642336,109090.0,109080.0,0.6738343]
[1751608221146,0.85842336,109090.0,109080.0,0.6738343]
[1751608222049,0.50142336,109090.0,109080.0,0.6748343]
[1751608224348,0.50142336,109090.0,109080.0,0.72962116]
[1751608232057,0.52364212,109090.0,109080.0,0.6748343]
[1751608232256,0.52364212,109090.0,109080.0,0.7386343]
[1751608235459,0.50142336,109090.0,109080.0,0.79342116]
[1751608237454,0.52372661,109090.0,109080.0,0.79342116]
[1751608237753,0.55412661,109090.0,109080.0,0.76282116]
[1751608239259,0.55412661,109090.0,109080.0,2.84082116]
[1751608241962,0.53182336,109090.0,109080.0,2.7860343]
[1751608243354,0.53182336,109090.0,109080.0,2.85897271]
[1751608243559,0.2822723,109090.0,109080.0,2.85897271]
[1751608245059,0.30461057,109090.0,109080.0,2.7860343]
[1751608249171,0.24171057,109090.0,109080.0,2.7860343]
[1751608249367,0.02733827,109090.0,109080.0,3.99753642]
[1751608249572,0.005,109090.0,109080.0,4.07047483]
[1751608249768,0.005,109090.0,109080.0,3.82092377]
[1751608250465,0.005,109090.0,109080.0,3.74798536]
[1751608250863,0.005,109090.0,109080.0,3.37798536]
[1751608251270,0.005,109090.0,109080.0,3.45092377]
[1751608252373,0.005,109090.0,109080.0,3.37798536]
[1751608255375,0.1882723,109090.0,109080.0,3.1284343]
[1751608255671,0.1882723,109090.0,109080.0,3.37798536]
[1751608257375,0.005,109090.0,109080.0,3.37798536]
[1751608257778,0.1882723,109090.0,109080.0,3.37798536]
[1751608258474,0.1882723,109090.0,109080.0,3.73878536]
[1751608259377,0.005,109090.0,109080.0,3.73878536]
[1751608262080,0.005,109090.0,109080.0,3.81172377]
[1751608264281,0.005,109090.0,109080.0,3.09012377]
[1751608264477,0.005,109090.0,109080.0,3.81172377]
[1751608264781,0.005,109090.0,109080.0,3.88527448]
[1751608266983,0.005,109090.0,109080.0,3.85207448]
[1751608267280,0.005,109090.0,109080.0,3.88247448]
[1751608270680,0.005,109090.0,109080.0,3.85207448]
[1751608270879,0.005,109090.0,109080.0,3.88287448]
[1751608273788,0.25460288,109090.0,109080.0,4.13252918]
[1751608274084,0.43787518,109090.0,109080.0,3.77172918]
[1751608274280,0.43787518,109090.0,109080.0,4.60704918]
[1751608274480,0.25460288,109090.0,109080.0,4.60704918]
[1751608279303,0.25460288,109090.0,109080.0,4.53411077]
[1751608279497,0.25460288,109090.0,109080.0,4.60742878]
[1751608280301,0.005,109090.0,109080.0,4.60742878]
[1751608282196,0.005,109090.0,109080.0,4.53411077]
[1751608287602,0.25460288,109090.0,109080.0,4.53411077]
[1751608291106,0.28740288,109090.0,109080.0,4.53411077]
[1751608291999,0.06018592,109090.0,109080.0,4.53411077]
[1751608295410,0.06018592,109090.0,109080.0,4.17331077]
[1751608295710,0.06018592,109090.0,109080.0,4.53411077]
[1751608297818,0.06014202,109090.0,109080.0,4.53411077]
[1751608298910,0.06014202,109090.0,109080.0,4.17331077]
[1751608299107,0.06014202,109090.0,109080.0,4.53411077]
[1751608299611,0.0378,109090.0,109080.0,4.53411077]
[1751608303007,0.28740288,109090.0,109080.0,4.53411077]
[1751608304914,0.28740288,109090.0,109080.0,4.17331077]
[1751608305115,0.28740288,109090.0,109080.0,4.53411077]
[1751608308306,0.28740288,109090.0,109080.0,4.62520649]
[1751608308711,0.0378,109090.0,109080.0,4.62520649]
[1751608309105,0.28740288,109090.0,109080.0,4.62520649]
[1751608309610,0.0378,109090.0,109080.0,4.62520649]
[1751608310011,0.0378,109090.0,109080.0,4.53411077]
[1751608310310,0.0378,109090.0,109080.0,4.55411077]
[1751608310612,0.0378,109090.0,109080.0,4.92411077]
[1751608311004,0.31290288,109100.0,109090.0,2.2234724]
[1751608311212,0.33525257,109100.0,109090.0,3.22720548]
[1751608311404,0.31290288,109100.0,109090.0,3.22720548]
[1751608312615,0.31690288,109100.0,109090.0,3.22720548]
[1751608312910,0.31690288,109100.0,109090.0,3.23622888]
[1751608313613,0.31890288,109100.0,109090.0,3.23622888]
[1751608315207,0.35130288,109100.0,109090.0,3.23622888]
[1751608315613,0.3736535,109100.0,109090.0,3.16289868]
[1751608316313,0.3736535,109100.0,109090.0,3.23622888]
[1751608318416,0.12405062,109100.0,109090.0,2.85708948]
[1751608318714,0.3736535,109100.0,109090.0,2.85708855]
[1751608321117,0.3736535,109100.0,109090.0,2.80209868]
[1751608321321,0.3736535,109100.0,109090.0,2.85708923]
[1751608323120,0.3736535,109100.0,109090.0,2.88938923]